[Event "95th Caplin Hastings Congress"]
[Site "Hastings"]
[Date "2020.01.03"]
[Round "7.44"]
[White "Rice, Chris B"]
[Black "Butt, Laurence"]
[Result "1-0"]
[ECO "A10"]
[WhiteElo "2027"]
[BlackElo "1694"]
[Annotator "NA"]
[PlyCount "85"]
[EventDate "2019.12.28"]
[EventType "swiss"]
[EventCountry "ENG"]
[SourceTitle "playchess.com"]
[Source "ChessBase"]
[SourceQuality "1"]
[TimeControl "40/6600+30:3000+30"]

1. c4 {[%emt 0:11:22]} f5 {[%emt 0:09:06]} 2. g3 {[%emt 0:00:17]} Nf6 {[%emt 0:00:03]} 3. Bg2 {[%emt 0:00:09]} e6 {[%emt 0:00:04]} 4. Nf3 {[%emt 0:00:15]} c6 {[%emt 0:00:07]} 5. O-O {[%emt 0:00:12]} d5 {[%emt 0:00:04]} 6. d3 {[%emt 0:00:26]} Bd7 {[%emt 0:01:16]} 7. Nc3 {[%emt 0:00:43]} Be7 {[%emt 0:00:28]} 8. e4 {[%emt 0:03:02]} fxe4 {[%emt 0:08:00]} 9. dxe4 {[%emt 0:00:37]} dxc4 {[%emt 0:00:32]} 10. Qe2 {[%emt 0:06:08]} b5 {[%emt 0:02:51]} 11. e5 {[%emt 0:02:39]} Nd5 {[%emt 0:00:37]} 12. h4 {[%emt 0:04:08]} O-O {[%emt 0:00:16]} 13. Bg5 {[%emt 0:00:33]} h6 {[%emt 0:00:29]} 14. Bxe7 {[%emt 0:00:13]} Qxe7 {[%emt 0:00:02]} 15. a4 {[%emt 0:05:34]} a6 {[%emt 0:07:50]} 16. Nd4 {[%emt 0:18:26]} Ra7 {[%emt 0:02:26]} 17. axb5 {[%emt 0:17:10]} Nxc3 {[%emt 0:00:34]} 18. bxc3 {[%emt 0:00:06]} cxb5 {[%emt 0:00:39]} 19. Be4 {[%emt 0:09:56]} Qc5 {[%emt 0:12:18]} 20. Rfd1 {[%emt 0:10:37]} a5 {[%emt 0:07:55]} 21. Qh5 {[%emt 0:06:16]} Be8 {[%emt 0:00:49]} 22. Qe2 {[%emt 0:02:21]} Bf7 {[%emt 0:01:10]} 23. Bb1 {[%emt 0:01:45]} Nd7 {[%emt 0:00:44]} 24. Qe4 {[%emt 0:01:22]} g6 {[%emt 0:00:55]} 25. f4 {[%emt 0:03:30]} Re8 {[%emt 0:07:57]} 26. Kg2 {[%emt 0:04:46]} Nf8 {[%emt 0:00:07]} 27. Qf3 {[%emt 0:00:38]} b4 {[%emt 0:06:35]} 28. Nc6 {[%emt 0:01:47]} Ra6 {[%emt 0:00:40]} 29. Rd6 {[%emt 0:00:42]} bxc3 {[%emt 0:08:46]} 30. Be4 {[%emt 0:02:48]} Qb5 {[%emt 0:01:13]} 31. Qxc3 {[%emt 0:01:11]} a4 {[%emt 0:01:05]} 32. Rb1 {[%emt 0:00:52]} Qc5 {[%emt 0:01:18]} 33. Rb4 {[%emt 0:00:40]} a3 {[%emt 0:01:22]} 34. Rxc4 {[%emt 0:00:50]} Qb5 {[%emt 0:00:11]} 35. Nd4 {[%emt 0:00:49]} Qb2+ {[%emt 0:02:23]} 36. Qxb2 {[%emt 0:00:16]} axb2 {[%emt 0:00:02]} 37. Rxa6 {[%emt 0:00:08]} Rb8 {[%emt 0:00:34]} 38. Bb1 {[%emt 0:00:40]} Be8 {[%emt 0:00:16]} 39. Ra2 {[%emt 0:00:36]} Nd7 {[%emt 0:00:13]} 40. Rc2 {[%emt 0:00:26]} Rb4 {[%emt 0:00:03]} 41. Ne2 {[%emt 0:50:43]} g5 {[%emt 0:50:59]} 42. Rcxb2 {[%emt 0:00:36]} Rc4 {[%emt 0:00:34]} 43. Ra8 {[%emt 0:00:47]} 1-0

[Event "95th Caplin Hastings Congress"]
[Site "Hastings"]
[Date "2020.01.03"]
[Round "7.46"]
[White "Ortiz Sanchez, Luis"]
[Black "Gisbert Mir, Alejandro"]
[Result "1-0"]
[ECO "A13"]
[WhiteElo "1947"]
[BlackElo "1835"]
[Annotator "NA"]
[PlyCount "49"]
[EventDate "2019.12.28"]
[EventType "swiss"]
[EventCountry "ENG"]
[SourceTitle "playchess.com"]
[Source "ChessBase"]
[SourceQuality "1"]
[TimeControl "40/6600+30:3000+30"]

1. Nf3 {[%emt 0:09:33]} Nf6 {[%emt 0:11:40]} 2. b3 {[%emt 0:00:01]} d5 {[%emt 0:01:31]} 3. Bb2 {[%emt 0:00:38]} e6 {[%emt 0:02:51]} 4. e3 {[%emt 0:01:37]} c5 {[%emt 0:00:12]} 5. c4 {[%emt 0:00:59]} Be7 {[%emt 0:00:26]} 6. cxd5 {[%emt 0:00:11]} exd5 {[%emt 0:00:09]} 7. d4 {[%emt 0:00:06]} b6 {[%emt 0:01:00]} 8. Bb5+ {[%emt 0:03:29]} Bd7 {[%emt 0:00:15]} 9. Bxd7+ {[%emt 0:00:07]} Nbxd7 {[%emt 0:00:15]} 10. O-O {[%emt 0:00:33]} O-O {[%emt 0:00:02]} 11. Nc3 {[%emt 0:01:10]} Rc8 {[%emt 0:10:40]} 12. dxc5 {[%emt 0:02:13]} Nxc5 {[%emt 0:00:16]} 13. Rc1 {[%emt 0:01:17]} Nce4 {[%emt 0:01:59]} 14. Nd4 {[%emt 0:00:44]} Bb4 {[%emt 0:01:12]} 15. Qd3 {[%emt 0:05:19]} Qd7 {[%emt 0:04:30]} 16. Nf3 {[%emt 0:05:17]} Rfd8 {[%emt 0:02:15]} 17. Rfd1 {[%emt 0:00:43]} Nc5 {[%emt 0:02:34]} 18. Qd4 {[%emt 0:08:07]} Bxc3 {[%emt 0:02:18]} 19. Bxc3 {[%emt 0:03:37]} Qg4 {[%emt 0:03:33]} 20. Qxg4 {[%emt 0:00:37]} Nxg4 {[%emt 0:00:01]} 21. h3 {[%emt 0:00:06]} Ne4 {[%emt 0:00:42]} 22. Be1 {[%emt 0:05:22]} Ngf6 {[%emt 0:04:12]} 23. Nd4 {[%emt 0:00:50]} a5 {[%emt 0:07:09]} 24. Nc6 {[%emt 0:00:32]} Re8 {[%emt 0:00:41]} 25. Ne7+ {[%emt 0:00:08]} 1-0

[Event "95th Caplin Hastings Congress"]
[Site "Hastings"]
[Date "2020.01.03"]
[Round "7.47"]
[White "Byrn, Carsten"]
[Black "Wilson, Matthew R"]
[Result "1-0"]
[ECO "A27"]
[WhiteElo "1919"]
[BlackElo "1837"]
[Annotator "NA"]
[PlyCount "91"]
[EventDate "2019.12.28"]
[EventType "swiss"]
[EventCountry "ENG"]
[SourceTitle "playchess.com"]
[Source "ChessBase"]
[SourceQuality "1"]
[TimeControl "40/6600+30:3000+30"]

1. c4 {[%emt 0:09:31]} e5 {[%emt 0:09:33]} 2. g3 {[%emt 0:00:05]} Nc6 {[%emt 0:00:05]} 3. Nc3 {[%emt 0:00:13]} f5 {[%emt 0:00:08]} 4. Nf3 {[%emt 0:00:13]} Nf6 {[%emt 0:08:34]} 5. d4 {[%emt 0:00:48]} e4 {[%emt 0:02:58]} 6. Nh4 {[%emt 0:00:03]} d5 {[%emt 0:00:52]} 7. Bg5 {[%emt 0:03:40]} Bb4 {[%emt 0:09:21]} 8. e3 {[%emt 0:06:06]} O-O {[%emt 0:04:22]} 9. Rc1 {[%emt 0:00:51]} Ne7 {[%emt 0:09:35]} 10. Bxf6 {[%emt 0:09:10]} Rxf6 {[%emt 0:01:54]} 11. Ng2 {[%emt 0:02:04]} c6 {[%emt 0:01:59]} 12. h4 {[%emt 0:00:08]} Be6 {[%emt 0:06:18]} 13. Qb3 {[%emt 0:02:26]} Bxc3+ {[%emt 0:01:06]} 14. Rxc3 {[%emt 0:00:59]} dxc4 {[%emt 0:09:42]} 15. Bxc4 {[%emt 0:01:33]} Bxc4 {[%emt 0:02:35]} 16. Rxc4 {[%emt 0:01:01]} Qa5+ {[%emt 0:07:02]} 17. Rc3+ {[%emt 0:06:34]} Nd5 {[%emt 0:01:21]} 18. Nf4 {[%emt 0:03:30]} Rf7 {[%emt 0:12:05]} 19. Nxd5 {[%emt 0:00:53]} Qxd5 {[%emt 0:02:45]} 20. Qxd5 {[%emt 0:00:51]} cxd5 {[%emt 0:00:03]} 21. Kd2 {[%emt 0:00:30]} h5 {[%emt 0:05:21]} 22. Rhc1 {[%emt 0:02:47]} Rd7 {[%emt 0:00:55]} 23. Rc8+ {[%emt 0:01:10]} Rxc8 {[%emt 0:00:05]} 24. Rxc8+ {[%emt 0:06:01]} Kf7 {[%emt 0:00:21]} 25. Kc3 {[%emt 0:01:09]} Ke6 {[%emt 0:09:06]} 26. Kb4 {[%emt 0:00:58]} b6 {[%emt 0:01:45]} 27. Kb5 {[%emt 0:01:22]} Kd6 {[%emt 0:03:31]} 28. Rc6+ {[%emt 0:03:25]} Ke7 {[%emt 0:00:01]} 29. Rg6 {[%emt 0:01:13]} Kf7 {[%emt 0:02:42]} 30. Kc6 {[%emt 0:00:51]} Re7 {[%emt 0:05:29]} 31. Rd6 {[%emt 0:00:54]} Re8 {[%emt 0:00:53]} 32. Kxd5 {[%emt 0:00:42]} g6 {[%emt 0:01:19]} 33. Rd7+ {[%emt 0:01:30]} Kf6 {[%emt 0:00:33]} 34. Rc7 {[%emt 0:00:52]} Rd8+ {[%emt 0:00:44]} 35. Kc6 {[%emt 0:01:31]} g5 {[%emt 0:00:21]} 36. d5 {[%emt 0:02:30]} Ke5 {[%emt 0:01:18]} 37. Re7+ {[%emt 0:00:23]} Kf6 {[%emt 0:00:17]} 38. Re6+ {[%emt 0:00:11]} Kf7 {[%emt 0:00:04]} 39. hxg5 {[%emt 0:02:00]} Rc8+ {[%emt 0:00:01]} 40. Kd6 {[%emt 0:00:37]} Rc2 {[%emt 0:00:41]} 41. Rf6+ {[%emt 0:50:50]} Kg7 {[%emt 0:05:02]} 42. Rxf5 {[%emt 0:00:31]} Rxb2 {[%emt 0:00:11]} 43. Ke6 {[%emt 0:00:00]} Rxa2 {[%emt 0:00:32]} 44. d6 {[%emt 0:00:00]} a5 {[%emt 0:01:05]} 45. d7 {[%emt 0:00:00]} Rd2 {[%emt 0:00:37]} 46. Rd5 {[%emt 0:00:00]} 1-0

[Event "95th Caplin Hastings Congress"]
[Site "Hastings"]
[Date "2020.01.03"]
[Round "7.48"]
[White "Jukes, Sam"]
[Black "Bryant, Marc A"]
[Result "1-0"]
[ECO "C55"]
[WhiteElo "1926"]
[BlackElo "1823"]
[Annotator "NA"]
[PlyCount "116"]
[EventDate "2019.12.28"]
[EventType "swiss"]
[EventCountry "ENG"]
[SourceTitle "playchess.com"]
[Source "ChessBase"]
[SourceQuality "1"]
[TimeControl "40/6600+30:3000+30"]

1. e4 {[%emt 0:11:51]} e5 {[%emt 0:16:04]} 2. Nf3 {[%emt 0:00:08]} Nc6 {[%emt 0:00:03]} 3. Bc4 {[%emt 0:00:06]} Nf6 {[%emt 0:00:04]} 4. d3 {[%emt 0:00:09]} h6 {[%emt 0:01:14]} 5. c3 {[%emt 0:00:38]} d5 {[%emt 0:00:24]} 6. exd5 {[%emt 0:00:33]} Nxd5 {[%emt 0:00:08]} 7. O-O {[%emt 0:00:53]} Bg4 {[%emt 0:00:20]} 8. Re1 {[%emt 0:02:13]} Qd6 {[%emt 0:04:36]} 9. Nbd2 {[%emt 0:02:23]} f6 {[%emt 0:07:17]} 10. Ne4 {[%emt 0:01:58]} Qd7 {[%emt 0:01:12]} 11. h3 {[%emt 0:03:47]} Bh5 {[%emt 0:01:07]} 12. Ng3 {[%emt 0:01:49]} Bf7 {[%emt 0:02:17]} 13. d4 {[%emt 0:03:26]} Nb6 {[%emt 0:01:09]} 14. Bxf7+ {[%emt 0:02:59]} Kxf7 {[%emt 0:02:08]} 15. Qb3+ {[%emt 0:02:16]} Qe6 {[%emt 0:03:44]} 16. Qxe6+ {[%emt 0:02:53]} Kxe6 {[%emt 0:00:10]} 17. dxe5 {[%emt 0:12:50]} Nxe5 {[%emt 0:02:16]} 18. Nxe5 {[%emt 0:02:28]} fxe5 {[%emt 0:00:07]} 19. Be3 {[%emt 0:01:55]} Nc4 {[%emt 0:05:58]} 20. b3 {[%emt 0:00:22]} Nxe3 {[%emt 0:00:28]} 21. Rxe3 {[%emt 0:00:35]} Bc5 {[%emt 0:00:20]} 22. Re2 {[%emt 0:00:25]} Rhf8 {[%emt 0:01:22]} 23. Rae1 {[%emt 0:01:40]} Kd7 {[%emt 0:03:25]} 24. Ne4 {[%emt 0:02:18]} Bb6 {[%emt 0:00:13]} 25. Nd2 {[%emt 0:01:24]} Rf5 {[%emt 0:03:41]} 26. Nf3 {[%emt 0:11:59]} Re8 {[%emt 0:01:12]} 27. Rxe5 {[%emt 0:03:52]} Rexe5 {[%emt 0:02:56]} 28. Rxe5 {[%emt 0:00:21]} Rxe5 {[%emt 0:00:26]} 29. Nxe5+ {[%emt 0:00:06]} Ke6 {[%emt 0:00:10]} 30. Nd3 {[%emt 0:01:21]} c6 {[%emt 0:01:10]} 31. g4 {[%emt 0:00:46]} Kd5 {[%emt 0:00:30]} 32. Kf1 {[%emt 0:02:02]} Ke4 {[%emt 0:00:15]} 33. Ke2 {[%emt 0:00:26]} g5 {[%emt 0:02:42]} 34. f3+ {[%emt 0:01:44]} Kd5 {[%emt 0:00:07]} 35. f4 {[%emt 0:02:15]} gxf4 {[%emt 0:00:52]} 36. Kf3 {[%emt 0:00:51]} Ke6 {[%emt 0:02:31]} 37. Kxf4 {[%emt 0:01:26]} Bc7+ {[%emt 0:00:18]} 38. Ke4 {[%emt 0:00:06]} Kf6 {[%emt 0:00:16]} 39. Nf4 {[%emt 0:03:33]} Bd6 {[%emt 0:05:58]} 40. c4 {[%emt 0:02:38]} a5 {[%emt 0:01:34]} 41. Ne2 {[%emt 0:53:22]} Bc5 {[%emt 0:55:48]} 42. Ng3 {[%emt 0:05:31]} Kg5 {[%emt 0:02:09]} 43. Kf3 {[%emt 0:00:39]} Ba3 {[%emt 0:09:59]} 44. Nf5 {[%emt 0:00:18]} b5 {[%emt 0:00:53]} 45. cxb5 {[%emt 0:00:33]} cxb5 {[%emt 0:00:08]} 46. Nd4 {[%emt 0:00:31]} Bb4 {[%emt 0:06:33]} 47. Nxb5 {[%emt 0:01:14]} Kh4 {[%emt 0:00:35]} 48. Kg2 {[%emt 0:00:05]} h5 {[%emt 0:00:11]} 49. gxh5 {[%emt 0:00:42]} Kxh5 {[%emt 0:00:06]} 50. Nd4 {[%emt 0:00:22]} Bc3 {[%emt 0:02:19]} 51. Nc6 {[%emt 0:00:19]} Kg5 {[%emt 0:01:58]} 52. Kf3 {[%emt 0:02:41]} Kf5 {[%emt 0:00:19]} 53. Ke3 {[%emt 0:01:06]} Ke6 {[%emt 0:00:26]} 54. Kd3 {[%emt 0:00:17]} Be1 {[%emt 0:00:07]} 55. Kc4 {[%emt 0:00:13]} a4 {[%emt 0:01:47]} 56. b4 {[%emt 0:00:46]} Kd6 {[%emt 0:00:23]} 57. Kb5 {[%emt 0:00:14]} a3 {[%emt 0:00:55]} 58. Na5 {[%emt 0:00:31]} Kd5 {[%emt 0:02:35]} 1-0

[Event "95th Caplin Hastings Congress"]
[Site "Hastings"]
[Date "2020.01.03"]
[Round "7.49"]
[White "Faulks, Nick"]
[Black "Khoo-Thwe, Louis"]
[Result "0-1"]
[ECO "C33"]
[WhiteElo "1900"]
[BlackElo "1654"]
[Annotator "NA"]
[PlyCount "50"]
[EventDate "2019.12.28"]
[EventType "swiss"]
[EventCountry "ENG"]
[SourceTitle "playchess.com"]
[Source "ChessBase"]
[SourceQuality "1"]
[TimeControl "40/6600+30:3000+30"]

1. e4 {[%emt 0:10:15]} e5 {[%emt 0:09:37]} 2. f4 {[%emt 0:00:13]} exf4 {[%emt 0:00:13]} 3. Bc4 {[%emt 0:00:09]} Qh4+ {[%emt 0:00:29]} 4. Kf1 {[%emt 0:00:06]} Qe7 {[%emt 0:02:33]} 5. Nc3 {[%emt 0:03:12]} Nf6 {[%emt 0:01:30]} 6. d3 {[%emt 0:04:51]} g5 {[%emt 0:02:09]} 7. h4 {[%emt 0:03:04]} d5 {[%emt 0:02:55]} 8. Bxd5 {[%emt 0:03:47]} Bg4 {[%emt 0:00:11]} 9. Nf3 {[%emt 0:01:04]} c6 {[%emt 0:00:49]} 10. Bb3 {[%emt 0:01:26]} Nh5 {[%emt 0:00:13]} 11. Ne2 {[%emt 0:06:46]} f6 {[%emt 0:01:33]} 12. Kf2 {[%emt 0:09:01]} Nd7 {[%emt 0:04:02]} 13. Re1 {[%emt 0:04:50]} O-O-O {[%emt 0:03:25]} 14. Nh2 {[%emt 0:04:41]} Bxe2 {[%emt 0:02:22]} 15. Rxe2 {[%emt 0:02:24]} Ng3 {[%emt 0:01:00]} 16. Re1 {[%emt 0:00:24]} Ne5 {[%emt 0:01:43]} 17. d4 {[%emt 0:03:57]} c5 {[%emt 0:00:43]} 18. c3 {[%emt 0:05:40]} cxd4 {[%emt 0:00:49]} 19. cxd4 {[%emt 0:01:07]} Qb4 {[%emt 0:00:51]} 20. Nf3 {[%emt 0:06:46]} Nxf3 {[%emt 0:00:33]} 21. Kxf3 {[%emt 0:06:54]} Rxd4 {[%emt 0:00:59]} 22. Qc2+ {[%emt 0:02:05]} Kb8 {[%emt 0:00:34]} 23. Qc3 {[%emt 0:02:27]} Qxc3+ {[%emt 0:00:51]} 24. bxc3 {[%emt 0:00:14]} Rd3+ {[%emt 0:00:07]} 25. Kf2 {[%emt 0:00:23]} Bc5+ {[%emt 0:00:09]} 0-1

[Event "95th Caplin Hastings Congress"]
[Site "Hastings"]
[Date "2020.01.03"]
[Round "7.50"]
[White "Ruane, Brendan J"]
[Black "Sandhu, Manvith"]
[Result "1-0"]
[ECO "A07"]
[WhiteElo "1865"]
[BlackElo "1747"]
[Annotator "NA"]
[PlyCount "74"]
[EventDate "2019.12.28"]
[EventType "swiss"]
[EventCountry "ENG"]
[SourceTitle "playchess.com"]
[Source "ChessBase"]
[SourceQuality "1"]
[TimeControl "40/6600+30:3000+30"]

1. Nf3 {[%emt 0:11:00]} d5 {[%emt 0:09:44]} 2. d3 {[%emt 0:00:11]} Nf6 {[%emt 0:00:17]} 3. g3 {[%emt 0:00:13]} c6 {[%emt 0:00:07]} 4. Bg2 {[%emt 0:00:05]} Bf5 {[%emt 0:00:09]} 5. Nbd2 {[%emt 0:00:37]} e6 {[%emt 0:00:19]} 6. O-O {[%emt 0:00:16]} Be7 {[%emt 0:00:09]} 7. b3 {[%emt 0:00:12]} O-O {[%emt 0:00:09]} 8. Bb2 {[%emt 0:00:05]} h6 {[%emt 0:00:09]} 9. Qe1 {[%emt 0:00:20]} Bh7 {[%emt 0:00:19]} 10. e4 {[%emt 0:01:16]} Nbd7 {[%emt 0:00:34]} 11. Qe2 {[%emt 0:00:47]} Nc5 {[%emt 0:04:57]} 12. Ne1 {[%emt 0:07:03]} a5 {[%emt 0:22:09]} 13. a4 {[%emt 0:00:07]} Kh8 {[%emt 0:09:34]} 14. Kh1 {[%emt 0:06:49]} Re8 {[%emt 0:00:41]} 15. f4 {[%emt 0:01:27]} Qc7 {[%emt 0:08:47]} 16. Bf3 {[%emt 0:03:02]} Kg8 {[%emt 0:11:34]} 17. Ng2 {[%emt 0:01:10]} Rad8 {[%emt 0:04:17]} 18. Rae1 {[%emt 0:02:18]} Qb8 {[%emt 0:04:08]} 19. Qf2 {[%emt 0:06:11]} Na6 {[%emt 0:05:52]} 20. g4 {[%emt 0:09:44]} Nb4 {[%emt 0:06:27]} 21. Bd1 {[%emt 0:02:05]} Nd7 {[%emt 0:06:40]} 22. g5 {[%emt 0:06:03]} h5 {[%emt 0:05:38]} 23. Qf3 {[%emt 0:06:52]} dxe4 {[%emt 0:06:29]} 24. dxe4 {[%emt 0:05:01]} Nc5 {[%emt 0:02:16]} 25. Qc3 {[%emt 0:03:24]} Bf8 {[%emt 0:01:16]} 26. Bf3 {[%emt 0:02:42]} Qd6 {[%emt 0:02:03]} 27. Nc4 {[%emt 0:00:19]} Qc7 {[%emt 0:01:25]} 28. Re2 {[%emt 0:02:56]} Bg6 {[%emt 0:01:12]} 29. Ne5 {[%emt 0:03:14]} Bh7 {[%emt 0:01:18]} 30. Nh4 {[%emt 0:02:03]} Nd7 {[%emt 0:01:34]} 31. Bxh5 {[%emt 0:02:00]} Nxe5 {[%emt 0:00:29]} 32. fxe5 {[%emt 0:00:50]} Rd7 {[%emt 0:04:15]} 33. g6 {[%emt 0:01:15]} fxg6 {[%emt 0:00:37]} 34. Bxg6 {[%emt 0:00:24]} Bxg6 {[%emt 0:00:07]} 35. Nxg6 {[%emt 0:00:05]} Rf7 {[%emt 0:00:50]} 36. Ref2 {[%emt 0:00:19]} Rxf2 {[%emt 0:00:34]} 37. Rxf2 {[%emt 0:00:02]} Kh7 {[%emt 0:00:00]} 1-0

[Event "95th Caplin Hastings Congress"]
[Site "Hastings"]
[Date "2020.01.03"]
[Round "7.51"]
[White "Metcalfe, Charlie P"]
[Black "Brouwer, Willem"]
[Result "1-0"]
[ECO "D26"]
[WhiteElo "1816"]
[BlackElo "1662"]
[Annotator "NA"]
[PlyCount "47"]
[EventDate "2019.12.28"]
[EventType "swiss"]
[EventCountry "ENG"]
[SourceTitle "playchess.com"]
[Source "ChessBase"]
[SourceQuality "1"]
[TimeControl "40/6600+30:3000+30"]

1. d4 {[%emt 0:09:32]} d5 {[%emt 0:10:58]} 2. c4 {[%emt 0:00:01]} dxc4 {[%emt 0:00:19]} 3. Nf3 {[%emt 0:00:02]} Nf6 {[%emt 0:00:30]} 4. e3 {[%emt 0:00:01]} e6 {[%emt 0:00:25]} 5. Bxc4 {[%emt 0:00:02]} c5 {[%emt 0:00:44]} 6. O-O {[%emt 0:00:05]} cxd4 {[%emt 0:00:47]} 7. exd4 {[%emt 0:00:03]} Be7 {[%emt 0:00:40]} 8. Nc3 {[%emt 0:00:14]} O-O {[%emt 0:00:30]} 9. Qe2 {[%emt 0:00:07]} Nc6 {[%emt 0:01:55]} 10. Rd1 {[%emt 0:00:08]} Qc7 {[%emt 0:03:45]} 11. Ne5 {[%emt 0:34:53]} Nxe5 {[%emt 0:25:46]} 12. dxe5 {[%emt 0:00:06]} Nd7 {[%emt 0:00:22]} 13. Bf4 {[%emt 0:02:48]} a6 {[%emt 0:03:53]} 14. Rac1 {[%emt 0:02:27]} Qa5 {[%emt 0:02:05]} 15. Rd3 {[%emt 0:22:56]} b5 {[%emt 0:01:06]} 16. Rh3 {[%emt 0:07:13]} g6 {[%emt 0:03:34]} 17. Bd3 {[%emt 0:04:08]} Bb7 {[%emt 0:05:53]} 18. Qe3 {[%emt 0:09:45]} Bc5 {[%emt 0:07:08]} 19. Qg3 {[%emt 0:00:17]} Be7 {[%emt 0:01:16]} 20. Bg5 {[%emt 0:16:00]} Bxg5 {[%emt 0:08:56]} 21. Qxg5 {[%emt 0:00:02]} f5 {[%emt 0:01:04]} 22. Qe7 {[%emt 0:04:00]} Rf7 {[%emt 0:01:45]} 23. Qxe6 {[%emt 0:00:02]} Re8 {[%emt 0:01:31]} 24. Qxe8+ {[%emt 0:00:03]} 1-0

[Event "95th Caplin Hastings Congress"]
[Site "Hastings"]
[Date "2020.01.03"]
[Round "7.52"]
[White "Flynn, David"]
[Black "Kumar, Soham"]
[Result "1/2-1/2"]
[ECO "B22"]
[WhiteElo "1853"]
[BlackElo "1598"]
[Annotator "NA"]
[PlyCount "84"]
[EventDate "2019.12.28"]
[EventType "swiss"]
[EventCountry "ENG"]
[SourceTitle "playchess.com"]
[Source "ChessBase"]
[SourceQuality "1"]
[TimeControl "40/6600+30:3000+30"]

1. e4 {[%emt 0:16:35]} c5 {[%emt 0:09:34]} 2. c3 {[%emt 0:00:06]} Nf6 {[%emt 0:00:22]} 3. e5 {[%emt 0:00:17]} Nd5 {[%emt 0:00:07]} 4. Nf3 {[%emt 0:00:04]} e6 {[%emt 0:00:24]} 5. Bc4 {[%emt 0:00:06]} Nb6 {[%emt 0:00:10]} 6. Bb3 {[%emt 0:00:04]} c4 {[%emt 0:00:17]} 7. Bc2 {[%emt 0:00:06]} Nc6 {[%emt 0:00:15]} 8. d4 {[%emt 0:05:17]} cxd3 {[%emt 0:00:26]} 9. Qxd3 {[%emt 0:00:24]} Qc7 {[%emt 0:01:54]} 10. Qe2 {[%emt 0:04:36]} Be7 {[%emt 0:02:50]} 11. O-O {[%emt 0:00:31]} d6 {[%emt 0:10:34]} 12. exd6 {[%emt 0:01:48]} Bxd6 {[%emt 0:00:09]} 13. Nbd2 {[%emt 0:07:50]} Bd7 {[%emt 0:00:54]} 14. Ne4 {[%emt 0:01:29]} Be7 {[%emt 0:00:46]} 15. Rd1 {[%emt 0:13:43]} O-O-O {[%emt 0:01:17]} 16. a3 {[%emt 0:12:20]} h6 {[%emt 0:01:17]} 17. b4 {[%emt 0:01:56]} g5 {[%emt 0:02:42]} 18. c4 {[%emt 0:05:26]} g4 {[%emt 0:11:28]} 19. Ne1 {[%emt 0:00:24]} Rhg8 {[%emt 0:22:46]} 20. Bb2 {[%emt 0:12:37]} Rdf8 {[%emt 0:13:13]} 21. Nf6 {[%emt 0:01:48]} Bxf6 {[%emt 0:04:22]} 22. Bxf6 {[%emt 0:00:06]} Qf4 {[%emt 0:01:14]} 23. Bh4 {[%emt 0:07:10]} Nd4 {[%emt 0:07:27]} 24. Qe4 {[%emt 0:05:24]} Qxe4 {[%emt 0:01:56]} 25. Bxe4 {[%emt 0:00:02]} Ne2+ {[%emt 0:02:25]} 26. Kf1 {[%emt 0:08:02]} Nc3 {[%emt 0:00:11]} 27. Bh7 {[%emt 0:00:30]} Nxd1 {[%emt 0:02:36]} 28. Bxg8 {[%emt 0:00:08]} Rxg8 {[%emt 0:00:09]} 29. Rxd1 {[%emt 0:00:12]} Nxc4 {[%emt 0:01:03]} 30. Rc1 {[%emt 0:00:44]} b5 {[%emt 0:00:13]} 31. Nd3 {[%emt 0:00:35]} Kb8 {[%emt 0:00:54]} 32. Bg3+ {[%emt 0:00:32]} Ka8 {[%emt 0:00:25]} 33. Ne5 {[%emt 0:00:39]} Nxe5 {[%emt 0:00:15]} 34. Bxe5 {[%emt 0:00:03]} Rc8 {[%emt 0:00:13]} 35. Rxc8+ {[%emt 0:00:41]} Bxc8 {[%emt 0:00:07]} 36. Ke2 {[%emt 0:00:27]} Kb7 {[%emt 0:00:13]} 37. Ke3 {[%emt 0:00:12]} Kc6 {[%emt 0:00:31]} 38. Bg7 {[%emt 0:01:11]} h5 {[%emt 0:00:33]} 39. Ke4 {[%emt 0:02:25]} f5+ {[%emt 0:01:10]} 40. Ke5 {[%emt 0:00:59]} Bd7 {[%emt 0:00:16]} 41. g3 {[%emt 0:52:51]} a6 {[%emt 0:50:13]} 42. Bf6 {[%emt 0:02:50]} Bc8 {[%emt 0:00:40] Ke4} 1/2-1/2

[Event "95th Caplin Hastings Congress"]
[Site "Hastings"]
[Date "2020.01.03"]
[Round "7.54"]
[White "Zheng, Harry Z"]
[Black "Kumar, Sanjit S"]
[Result "1-0"]
[ECO "C54"]
[WhiteElo "1823"]
[BlackElo "1681"]
[Annotator "NA"]
[PlyCount "101"]
[EventDate "2019.12.28"]
[EventType "swiss"]
[EventCountry "ENG"]
[SourceTitle "playchess.com"]
[Source "ChessBase"]
[SourceQuality "1"]
[TimeControl "40/6600+30:3000+30"]

1. e4 {[%emt 0:09:33]} e5 {[%emt 0:09:36]} 2. Nf3 {[%emt 0:00:07]} Nc6 {[%emt 0:00:08]} 3. Bc4 {[%emt 0:00:07]} Nf6 {[%emt 0:00:08]} 4. d3 {[%emt 0:00:07]} Bc5 {[%emt 0:00:10]} 5. c3 {[%emt 0:00:14]} d6 {[%emt 0:00:14]} 6. O-O {[%emt 0:00:16]} O-O {[%emt 0:00:21]} 7. Nbd2 {[%emt 0:00:22]} a6 {[%emt 0:00:45]} 8. Bb3 {[%emt 0:00:43]} Be6 {[%emt 0:00:39]} 9. h3 {[%emt 0:12:14]} Qd7 {[%emt 0:11:47]} 10. Bxe6 {[%emt 0:05:54]} fxe6 {[%emt 0:00:18]} 11. Re1 {[%emt 0:00:14]} Rae8 {[%emt 0:06:53]} 12. Nb3 {[%emt 0:10:36]} Ba7 {[%emt 0:11:54]} 13. d4 {[%emt 0:03:57]} exd4 {[%emt 0:14:40]} 14. cxd4 {[%emt 0:01:36]} e5 {[%emt 0:05:15]} 15. d5 {[%emt 0:01:23]} Ne7 {[%emt 0:12:21]} 16. Bd2 {[%emt 0:05:54]} h6 {[%emt 0:06:58]} 17. Rc1 {[%emt 0:16:15]} Ng6 {[%emt 0:04:54]} 18. Qc2 {[%emt 0:03:38]} Re7 {[%emt 0:06:22]} 19. Na5 {[%emt 0:10:28]} Ref7 {[%emt 0:01:29]} 20. Nxb7 {[%emt 0:09:38]} Nh5 {[%emt 0:00:22]} 21. Qc6 {[%emt 0:02:22]} Qc8 {[%emt 0:02:03]} 22. Nxd6 {[%emt 0:00:30]} cxd6 {[%emt 0:00:47]} 23. Qxc8 {[%emt 0:00:11]} Rxc8 {[%emt 0:00:05]} 24. Rxc8+ {[%emt 0:00:09]} Nf8 {[%emt 0:00:05]} 25. Rec1 {[%emt 0:01:16]} Nf4 {[%emt 0:00:21]} 26. Bxf4 {[%emt 0:01:04]} Rxf4 {[%emt 0:00:11]} 27. R1c7 {[%emt 0:00:39]} Bc5 {[%emt 0:00:08]} 28. Rb7 {[%emt 0:02:33]} Rxe4 {[%emt 0:00:10]} 29. Rcc7 {[%emt 0:00:08]} Re2 {[%emt 0:00:21]} 30. Rxg7+ {[%emt 0:01:43]} Kh8 {[%emt 0:00:06]} 31. Rgf7 {[%emt 0:00:52]} Kg8 {[%emt 0:00:16]} 32. Nh4 {[%emt 0:01:29]} Re1+ {[%emt 0:00:49]} 33. Kh2 {[%emt 0:00:10]} Re2 {[%emt 0:00:04]} 34. Kg3 {[%emt 0:04:17]} Bxf2+ {[%emt 0:00:15]} 35. Rxf2 {[%emt 0:00:07]} Rxf2 {[%emt 0:00:07]} 36. Kxf2 {[%emt 0:00:04]} Nh7 {[%emt 0:00:31]} 37. Nf5 {[%emt 0:00:18]} Nf6 {[%emt 0:00:07]} 38. Nxh6+ {[%emt 0:00:04]} Kh8 {[%emt 0:00:05]} 39. Nf7+ {[%emt 0:00:06]} Kg8 {[%emt 0:00:04]} 40. Nxd6 {[%emt 0:00:06]} e4 {[%emt 0:00:03]} 41. Nf5 {[%emt 0:50:20]} Nxd5 {[%emt 0:50:04]} 42. h4 {[%emt 0:00:17]} e3+ {[%emt 0:00:08]} 43. Nxe3 {[%emt 0:00:04]} Nf4 {[%emt 0:00:03]} 44. g4 {[%emt 0:00:12]} Ng6 {[%emt 0:00:04]} 45. h5 {[%emt 0:00:06]} Ne5 {[%emt 0:00:03]} 46. g5 {[%emt 0:00:09]} Nf7 {[%emt 0:00:04]} 47. g6 {[%emt 0:00:16]} Ne5 {[%emt 0:00:04]} 48. Nf5 {[%emt 0:00:16]} Ng4+ {[%emt 0:00:05]} 49. Kg3 {[%emt 0:00:06]} Nf6 {[%emt 0:00:05]} 50. Rb8+ {[%emt 0:00:06]} Ne8 {[%emt 0:00:06]} 51. Rxe8# {[%emt 0:00:05]} 1-0